bitfinex/quotes_BTCUSD_20260221
["timestamp","ask_amount","ask_price","bid_price","bid_amount"]
[1771647720025,0.07384898,67706.0,67694.0,0.07408099]
[1771647720285,0.0234993,67703.0,67696.0,0.07385946]
[1771647720497,0.07385218,67703.0,67694.0,0.07408099]
[1771647720819,0.0234993,67703.0,67694.0,0.00022]
[1771647721021,0.07385669,67699.0,67694.0,0.00022]
[1771647721179,0.0234993,67698.0,67694.0,0.00022]
[1771647721963,0.0234993,67698.0,67692.0,0.07386396]
[1771647722615,0.0234993,67698.0,67690.0,0.07402539]
[1771647722824,0.0234993,67697.0,67690.0,0.00016]
[1771647723914,0.07416358,67697.0,67688.0,0.07386833]
[1771647724156,0.0234993,67696.0,67689.0,0.0738668]
[1771647724947,0.0238035,67696.0,67689.0,0.0738668]
[1771647725131,0.0238035,67696.0,67686.0,0.0738685]
[1771647725325,0.0238035,67696.0,67682.0,0.29549692]
[1771647725326,0.16478672,67693.0,67682.0,0.29549692]
[1771647725555,0.0234993,67691.0,67682.0,0.29549692]
[1771647725723,0.0234993,67691.0,67686.0,0.07386948]
[1771647725925,0.0234993,67690.0,67682.0,0.29549692]
[1771647726541,0.0234993,67690.0,67680.0,0.00016]
[1771647726741,0.0234993,67690.0,67680.0,0.29566628]
[1771647727344,0.0234993,67690.0,67685.0,0.07387069]
[1771647727726,0.0234993,67690.0,67686.0,0.07387039]
[1771647728128,0.0234993,67690.0,67684.0,0.07387248]
[1771647729555,0.0234993,67690.0,67676.0,0.00022]
[1771647729556,0.1649979,67687.0,67676.0,0.00022]
[1771647729788,0.07388034,67677.0,67676.0,0.00022]
[1771647729987,0.02397138,67679.0,67676.0,0.00022]
[1771647729988,0.07388001,67678.0,67676.0,0.00022]
[1771647730196,0.02397138,67681.0,67670.0,0.00016]
[1771647730458,0.02397138,67676.0,67670.0,0.00016]
[1771647730679,0.000156,67683.0,67661.0,0.00022]
[1771647730680,0.02397138,67679.0,67661.0,0.00022]
[1771647730820,0.02397138,67672.0,67664.0,0.07389381]
[1771647731001,0.02397138,67672.0,67665.0,0.07389344]
[1771647731203,0.1649979,67677.0,67661.0,0.00022]
[1771647731204,0.07388725,67671.0,67662.0,0.0738957]
[1771647731418,0.09785863,67671.0,67662.0,0.0738957]
[1771647731610,0.09785943,67670.0,67661.0,0.07411753]
[1771647731826,0.02397138,67670.0,67662.0,0.07389639]
[1771647732128,0.02397138,67670.0,67663.0,0.07389562]
[1771647732362,0.02397138,67670.0,67664.0,0.07389439]
[1771647732873,0.02227138,67670.0,67664.0,0.07389439]
[1771647734036,0.02227138,67670.0,67663.0,0.07389543]
[1771647735273,0.02227138,67670.0,67665.0,0.00022]
[1771647738454,0.02227138,67670.0,67663.0,0.07389518]
[1771647739960,0.02227138,67670.0,67664.0,0.07389426]
[1771647740354,0.02227138,67670.0,67663.0,0.07389533]
[1771647742280,0.02227138,67670.0,67661.0,0.07411717]
[1771647742477,0.02397138,67669.0,67661.0,0.07411717]
[1771647742790,0.07389126,67667.0,67661.0,0.00022]
[1771647743085,0.07389299,67666.0,67661.0,0.00022]
[1771647743288,0.02397138,67666.0,67660.0,0.00038]
[1771647743599,0.02397138,67669.0,67660.0,0.00038]
[1771647743805,0.07389524,67664.0,67660.0,0.00038]
[1771647744022,0.1649979,67671.0,67655.0,0.0001404]
[1771647744023,0.0738978,67662.0,67655.0,0.0001404]
[1771647744146,0.02397138,67661.0,67655.0,0.07404447]
[1771647744351,0.02397138,67661.0,67655.0,0.0001404]
[1771647746888,0.02397138,67661.0,67655.0,0.07404446]
[1771647747294,0.07389596,67663.0,67655.0,0.07404446]
[1771647747680,0.02397138,67665.0,67657.0,0.07390124]
[1771647747881,0.02397138,67665.0,67656.0,0.0741231]
[1771647748842,0.02397138,67665.0,67657.0,0.07390218]
[1771647748979,0.07424818,67670.0,67661.0,0.07389703]
[1771647749168,0.07424818,67670.0,67660.0,0.07389673]
[1771647749836,0.00036,67670.0,67662.0,0.07389601]
[1771647750022,0.00036,67670.0,67662.0,0.0738964]
[1771647750418,0.00036,67670.0,67663.0,0.07389562]
[1771647750818,0.00036,67670.0,67664.0,0.07389453]
[1771647751424,0.00036,67670.0,67665.0,0.0738933]
[1771647751799,0.00036,67670.0,67663.0,0.07389562]
[1771647752411,0.00036,67670.0,67662.0,0.07389633]
[1771647752611,0.00036,67670.0,67663.0,0.07389535]
[1771647753030,0.00036,67670.0,67661.0,0.16848164]
[1771647753227,0.00036,67670.0,67664.0,0.07389356]
[1771647754970,0.00036,67670.0,67663.0,0.07389347]
[1771647756172,0.06599186,67677.0,67661.0,0.00022]
[1771647756374,0.000156,67683.0,67676.0,0.07388068]
[1771647756582,0.000156,67683.0,67676.0,8.666e-05]
[1771647756721,0.29547075,67689.0,67676.0,8.666e-05]
[1771647756722,0.02397138,67696.0,67688.0,0.07386762]
[1771647756927,0.07386261,67694.0,67685.0,0.07387127]
[1771647757132,0.07386301,67693.0,67680.0,0.19092836]
[1771647757353,0.07386301,67693.0,67683.0,0.07358004]
[1771647757575,0.07386402,67692.0,67683.0,0.07358004]
[1771647757794,0.07386301,67693.0,67683.0,0.07358004]
[1771647757795,0.07401329,67691.0,67683.0,0.07358004]
[1771647758202,0.07422622,67690.0,67676.0,0.16647532]
[1771647758406,0.07386847,67688.0,67679.0,0.07387756]
[1771647760805,0.07386847,67688.0,67680.0,0.07387702]
[1771647761487,0.07386847,67688.0,67679.0,0.07387789]
[1771647762847,0.07386847,67688.0,67677.0,0.07388034]
[1771647763059,0.07387135,67686.0,67677.0,0.07388034]
[1771647763254,0.07386977,67687.0,67678.0,0.073879]
[1771647763840,0.07386977,67687.0,67680.0,0.00022]
[1771647766511,0.00036,67690.0,67680.0,0.00022]
[1771647766702,0.07387607,67681.0,67676.0,8.666e-05]
[1771647766910,0.09642326,67681.0,67676.0,8.666e-05]
[1771647767057,0.02254719,67681.0,67676.0,8.666e-05]
[1771647770793,0.02254719,67681.0,67676.0,0.00030666]
[1771647771891,0.02254719,67682.0,67676.0,0.00030666]
[1771647772815,0.07387656,67681.0,67676.0,0.00030666]
[1771647772991,0.09642242,67682.0,67676.0,0.00030666]
[1771647775744,0.02254719,67682.0,67676.0,0.00030666]
[1771647777597,0.02254719,67682.0,67677.0,0.07388019]
[1771647777742,0.07387204,67685.0,67677.0,0.07388019]
[1771647777950,0.00036,67690.0,67678.0,0.02244672]
[1771647778179,0.00036,67690.0,67683.0,0.07387303]
[1771647778669,0.00036,67690.0,67682.0,0.07387467]
[1771647778842,0.07422648,67690.0,67682.0,0.07387467]
[1771647780592,0.07386918,67688.0,67679.0,0.07387737]
[1771647782606,0.07386972,67687.0,67679.0,0.07387737]
[1771647783014,0.00036,67690.0,67676.0,0.29582969]
[1771647783224,0.00036,67690.0,67680.0,0.19034491]
[1771647783554,0.00036,67690.0,67682.0,0.07387414]
[1771647785173,0.00036,67690.0,67683.0,0.07387379]
[1771647785490,0.00036,67690.0,67686.0,0.07386995]
[1771647786095,0.00036,67690.0,67686.0,0.07372351]
[1771647786295,0.00036,67690.0,67681.0,0.09632231]
[1771647786655,0.00036,67690.0,67682.0,0.07387488]
[1771647787344,0.07386105,67695.0,67686.0,0.0738696]
[1771647787959,0.07386105,67695.0,67686.0,0.07372317]
[1771647789880,0.07398968,67696.0,67687.0,0.07386941]
[1771647790535,0.0002,67695.0,67687.0,0.07386941]
[1771647791296,0.07406073,67695.0,67687.0,0.07386941]
[1771647791509,0.07406073,67695.0,67686.0,0.07387023]
[1771647791769,0.0001298,67696.0,67682.0,0.02244672]
[1771647791941,0.0001298,67696.0,67689.0,0.07386701]
[1771647792570,0.07398972,67696.0,67688.0,0.07386808]
[1771647792779,0.07398972,67696.0,67688.0,0.07362376]
[1771647792951,0.07398972,67696.0,67687.0,0.07386903]
[1771647793154,0.07398972,67696.0,67688.0,0.07372165]
[1771647793733,0.17752,67698.0,67668.0,0.29386895]
[1771647793734,0.17752,67698.0,67686.0,0.02244672]
[1771647794075,0.17752,67698.0,67692.0,0.07386307]
[1771647796008,0.17752,67698.0,67691.0,0.07386465]
[1771647796563,0.17752,67698.0,67690.0,0.0738655]
[1771647796792,0.17752,67698.0,67688.0,0.09631436]
[1771647796793,0.07385852,67697.0,67689.0,0.07386699]
[1771647801174,0.17772,67698.0,67690.0,0.07386614]
[1771647801372,0.17772,67698.0,67693.0,0.07386213]
[1771647801506,0.17772,67698.0,67693.0,0.07371569]
[1771647803154,0.17772,67698.0,67690.0,0.07386532]
[1771647804681,0.25157754,67698.0,67690.0,0.07386532]
[1771647806388,0.17772,67698.0,67690.0,0.07386532]
[1771647806998,0.25157761,67698.0,67690.0,0.07386532]
[1771647807771,0.17772,67698.0,67690.0,0.07386532]
[1771647808736,0.17772,67698.0,67691.0,0.07386484]
[1771647808938,0.17772,67698.0,67693.0,0.07386259]
[1771647809101,0.17772,67698.0,67694.0,0.07386154]
[1771647810025,0.0002,67698.0,67694.0,0.07386154]
[1771647810259,0.17134906,67705.0,67688.0,0.19034491]
[1771647810260,0.00016,67710.0,67707.0,0.07384739]
[1771647810444,0.07403673,67717.0,67708.0,0.07384543]
[1771647810639,0.07403673,67717.0,67701.0,0.02244672]
[1771647810640,0.0002,67717.0,67701.0,0.02244672]
[1771647810842,0.0002,67717.0,67710.0,0.07384367]
[1771647811476,0.0002,67717.0,67710.0,0.07393033]
[1771647811749,0.0002,67717.0,67710.0,8.666e-05]
[1771647811949,0.0002,67714.0,67710.0,0.00019346]
[1771647812299,0.0002,67714.0,67710.0,0.07403731]
[1771647812505,0.0002,67714.0,67710.0,0.00019346]
[1771647815349,0.0002,67714.0,67697.0,0.07385818]
[1771647815350,0.00016,67710.0,67697.0,0.07385818]
[1771647815549,0.022864,67705.0,67695.0,0.07385995]
[1771647816054,0.022864,67705.0,67697.0,0.07385851]
[1771647817841,0.09671389,67705.0,67697.0,0.07385851]
[1771647818802,0.09691389,67705.0,67697.0,0.07385851]
[1771647819937,0.07385207,67703.0,67694.0,0.07386083]
[1771647820141,0.09868217,67705.0,67696.0,0.07401486]
[1771647820401,0.02483147,67705.0,67696.0,0.07401486]
[1771647821595,0.07385109,67704.0,67696.0,0.07401486]
[1771647822047,0.02483147,67705.0,67697.0,0.07385775]
[1771647822481,0.00023502,67710.0,67703.0,0.07385119]
[1771647823487,0.00023502,67710.0,67702.0,0.07385278]
[1771647823632,0.07407955,67710.0,67702.0,0.07385278]
[1771647823836,0.07407955,67710.0,67701.0,0.07385373]
[1771647823837,0.00023502,67710.0,67701.0,0.07385342]
[1771647824043,0.00023502,67710.0,67702.0,0.07385306]
[1771647825393,0.0002,67705.0,67702.0,0.07385306]
[1771647831173,0.0002,67705.0,67701.0,0.07385342]
[1771647843025,0.0002,67705.0,67701.0,0.07407342]
[1771647844283,0.0002,67705.0,67702.0,0.07385269]
[1771647844496,0.29556177,67714.0,67702.0,0.02244672]
[1771647844497,0.07404022,67714.0,67702.0,0.02244672]
[1771647844699,0.07384115,67713.0,67705.0,0.09629542]
[1771647844908,0.07404022,67714.0,67705.0,0.0738487]
[1771647845490,0.07384115,67713.0,67705.0,0.0738487]
[1771647845898,0.07384106,67713.0,67705.0,0.07384978]
[1771647848087,0.07384106,67713.0,67704.0,0.07385088]
[1771647848088,0.07384246,67712.0,67704.0,0.07385088]
[1771647848286,0.02453357,67711.0,67704.0,0.07385088]
[1771647848495,0.02453357,67711.0,67703.0,0.07385171]
[1771647852312,0.02453357,67711.0,67704.0,0.0738508]
[1771647854728,0.0223504,67711.0,67705.0,0.07384974]
[1771647854931,0.0223504,67711.0,67704.0,0.0738508]
[1771647855878,0.0223504,67711.0,67705.0,0.07384967]
[1771647856860,0.07384549,67709.0,67701.0,0.00022]
[1771647857067,0.02453357,67708.0,67701.0,0.07407414]
[1771647863138,0.02453357,67708.0,67701.0,0.00022]
[1771647863667,0.02453357,67708.0,67701.0,0.07407345]
[1771647864328,0.02453357,67708.0,67703.0,0.07385095]
[1771647864528,0.09837659,67712.0,67703.0,0.07385095]
[1771647864933,0.07384363,67711.0,67703.0,0.07385095]
[1771647866002,0.02453357,67712.0,67701.0,0.29563456]
[1771647866302,0.02453357,67712.0,67704.0,0.07385015]
[1771647866678,0.09837655,67712.0,67704.0,0.07385015]
[1771647867050,0.09837655,67712.0,67703.0,0.07385161]
[1771647867906,0.09837616,67712.0,67702.0,0.07385256]
[1771647868106,0.07384259,67712.0,67703.0,0.07385197]
[1771647868265,0.02453357,67711.0,67703.0,0.07385197]
[1771647868466,0.02453357,67711.0,67702.0,0.07385306]
[1771647869530,0.02453357,67711.0,67703.0,0.07385137]
[1771647869736,0.07384259,67712.0,67704.0,0.07385012]
[1771647870284,0.0002,67713.0,67704.0,0.07385012]
[1771647870285,0.0002,67713.0,67704.0,0.02388767]
[1771647870536,0.0002,67713.0,67710.0,0.07384418]
[1771647871064,0.0002,67713.0,67709.0,0.07384518]
[1771647871963,0.0002,67713.0,67709.0,0.07384473]
[1771647879960,0.0002,67713.0,67710.0,0.07384429]
[1771647881597,0.0002,67713.0,67711.0,0.07384316]
[1771647881742,0.0002,67717.0,67712.0,0.07384213]
[1771647883845,0.16288961,67724.0,67712.0,0.07384213]
[1771647883846,0.0001293,67727.0,67712.0,0.02329923]
[1771647884030,0.0001293,67727.0,67725.0,0.04385156]
[1771647884031,0.00011733,67727.0,67725.0,0.04385156]
[1771647884217,0.00011733,67727.0,67724.0,0.073829]
[1771647884564,0.04029948,67729.0,67724.0,0.073829]
[1771647884791,0.0739477,67734.0,67720.0,0.29533146]
[1771647884792,0.0001293,67734.0,67721.0,0.02406046]
[1771647884987,0.0001293,67734.0,67728.0,0.07382453]
[1771647885211,0.0001293,67734.0,67728.0,0.02946057]
[1771647885804,0.0001293,67734.0,67727.0,0.07382558]
[1771647887549,0.0001293,67734.0,67728.0,0.07382463]
[1771647887669,0.0001293,67734.0,67727.0,0.0738255]
[1771647887874,0.0003293,67734.0,67727.0,0.0738255]
[1771647888803,0.0003293,67734.0,67728.0,0.07382456]
[1771647891087,0.00016782,67734.0,67728.0,0.07382456]
[1771647891639,0.02331122,67738.0,67729.0,0.07382334]
[1771647891802,0.07365376,67737.0,67728.0,0.07382456]
[1771647892007,0.073816,67736.0,67728.0,0.07382456]
[1771647892403,0.07381503,67737.0,67728.0,0.07382456]
[1771647892607,0.07381347,67739.0,67721.0,0.00011733]
[1771647892608,0.0002535,67739.0,67727.0,0.02406046]
[1771647892826,0.0002535,67739.0,67735.0,0.0738163]
[1771647893595,0.0002535,67739.0,67734.0,0.07381723]
[1771647894448,0.0004535,67739.0,67734.0,0.07381723]
[1771647895286,0.0004535,67739.0,67733.0,0.07381897]
[1771647895477,0.0004535,67739.0,67734.0,0.07381776]
[1771647895825,0.0004535,67739.0,67732.0,0.07381967]
[1771647896021,0.0004535,67739.0,67731.0,0.07382115]
[1771647896277,0.0004535,67739.0,67730.0,0.07382212]
[1771647896278,0.0004535,67739.0,67732.0,0.07382014]
[1771647897386,0.0004535,67739.0,67733.0,0.07381906]
[1771647898343,0.0004535,67739.0,67734.0,0.07381729]
[1771647898550,0.17744,67745.0,67740.0,0.0738107]
[1771647899061,0.17727853,67745.0,67740.0,0.0738107]
[1771647900119,0.17727853,67745.0,67739.0,0.0738107]
[1771647900433,0.17727853,67745.0,67741.0,0.07380982]
[1771647900725,0.17727853,67745.0,67740.0,0.07381135]
[1771647902436,0.17727853,67745.0,67738.0,0.07381295]
[1771647903017,0.17727853,67745.0,67739.0,0.07381186]
[1771647903216,0.07398619,67749.0,67740.0,0.02406046]
[1771647903418,0.07398619,67749.0,67740.0,0.07381132]
[1771647903627,0.07398619,67749.0,67741.0,0.09787062]
[1771647904446,0.07398619,67749.0,67741.0,0.02406046]
[1771647904858,0.07380361,67748.0,67741.0,0.02406046]
[1771647905594,0.0738032,67748.0,67740.0,0.07381147]
[1771647905936,0.0738032,67748.0,67739.0,0.07381186]
[1771647906167,0.07380406,67747.0,67739.0,0.07381186]
[1771647907282,0.07380326,67748.0,67740.0,0.07381148]
[1771647907874,0.07398618,67749.0,67740.0,0.07381148]
[1771647908272,0.07418618,67749.0,67740.0,0.07381148]
[1771647908998,0.07418618,67749.0,67739.0,0.24141287]
[1771647908999,0.000384,67749.0,67741.0,0.07380967]
[1771647909193,0.000384,67749.0,67739.0,0.19041604]
[1771647909401,0.000384,67749.0,67740.0,0.02281503]
[1771647909880,0.000384,67749.0,67743.0,0.07380727]
[1771647910979,0.00077507,67749.0,67743.0,0.07380727]
[1771647911176,0.00077507,67749.0,67744.0,0.07380719]
[1771647911813,0.000344,67760.0,67749.0,0.07380182]
[1771647912018,0.07425193,67760.0,67751.0,0.07379964]
[1771647912265,0.07379174,67759.0,67750.0,0.07380045]
[1771647913745,0.07379217,67758.0,67750.0,0.07380045]
[1771647914136,0.07379217,67758.0,67749.0,0.07380078]
[1771647914468,0.07379408,67757.0,67748.0,0.07380264]
[1771647914850,0.07379408,67758.0,67749.0,0.0738011]
[1771647915049,0.07379166,67759.0,67750.0,0.0737999]
[1771647915419,0.07379205,67758.0,67750.0,0.0737999]
[1771647916447,0.0002,67759.0,67743.0,0.16641862]
[1771647916591,0.0002,67759.0,67750.0,0.07379975]
[1771647916801,0.0002,67759.0,67751.0,0.07379959]
[1771647917206,0.07399096,67759.0,67750.0,0.07379996]
[1771647917410,0.07379203,67758.0,67750.0,0.07379996]
[1771647919723,0.07379312,67757.0,67748.0,0.07380266]
[1771647920076,0.07379312,67757.0,67749.0,0.07380165]
[1771647922635,0.07379418,67758.0,67749.0,0.07380165]
[1771647922839,0.07379314,67757.0,67749.0,0.07380165]
[1771647924152,0.07379314,67757.0,67748.0,0.07380188]
[1771647924347,0.07379314,67757.0,67749.0,0.07380105]
[1771647924731,0.07379243,67758.0,67749.0,0.07380105]
[1771647926143,0.07379316,67757.0,67749.0,0.07380105]
[1771647932039,0.07379243,67758.0,67749.0,0.09661584]
[1771647932477,0.07379243,67758.0,67751.0,0.02281503]
[1771647932893,0.07399135,67759.0,67751.0,0.02281503]
[1771647933092,0.07399135,67759.0,67751.0,0.09661444]
[1771647933374,0.0002,67759.0,67752.0,0.07379855]
[1771647934075,0.0002,67759.0,67754.0,0.05550556]
[1771647934303,0.0002,67759.0,67752.0,0.07379855]
[1771647934951,0.07399101,67759.0,67751.0,0.09661286]
[1771647935150,0.0002,67759.0,67751.0,0.09661286]
[1771647938093,0.07399104,67759.0,67751.0,0.09661286]
[1771647938795,0.0002,67759.0,67752.0,0.07379843]
[1771647939307,0.0002,67759.0,67751.0,0.09661431]
[1771647941341,0.07399142,67759.0,67751.0,0.09661431]
[1771647942001,0.0002,67759.0,67751.0,0.09661431]
[1771647942208,0.0002,67759.0,67752.0,0.07379843]
[1771647943143,0.0002,67759.0,67751.0,0.09661434]
[1771647944468,0.0002,67759.0,67751.0,0.09683434]
[1771647947490,0.07399113,67759.0,67751.0,0.09683434]
[1771647949657,0.07399113,67759.0,67751.0,0.07401931]
[1771647954152,0.07399113,67759.0,67745.0,0.2207378]
[1771647954153,0.17715408,67757.0,67745.0,0.2207378]
[1771647954324,0.0002,67759.0,67744.0,0.00022]
[1771647954325,0.07380137,67750.0,67744.0,0.2209578]
[1771647954659,0.07380004,67751.0,67744.0,0.00022]
[1771647954963,0.09780529,67752.0,67744.0,0.00022]
[1771647955195,0.02400616,67752.0,67747.0,0.07380307]
[1771647955397,0.07379488,67756.0,67747.0,0.07380307]
[1771647956091,0.07379488,67756.0,67748.0,0.07380281]
[1771647956655,0.07379536,67755.0,67747.0,0.07380394]
[1771647958409,0.02400616,67757.0,67744.0,0.00022]
[1771647958918,0.02400616,67757.0,67745.0,0.29522182]
[1771647959113,0.02400616,67757.0,67749.0,0.07380074]
[1771647962600,0.07379278,67758.0,67749.0,0.07380074]
[1771647963816,0.17735408,67759.0,67747.0,0.00022]
[1771647964006,0.07379633,67755.0,67747.0,0.00022]
[1771647964157,0.07379633,67755.0,67747.0,0.07402395]
[1771647966907,0.07379633,67755.0,67747.0,0.00022]
[1771647967343,0.07379633,67755.0,67747.0,0.07402334]
[1771647967543,0.07379636,67756.0,67747.0,0.07402334]
[1771647967846,0.07379636,67756.0,67746.0,0.07380508]
[1771647967847,0.16799239,67756.0,67744.0,0.00022]
[1771647968133,0.29536635,67759.0,67741.0,0.07403025]
[1771647968134,0.07380232,67749.0,67741.0,0.07403025]
[1771647968333,0.09740525,67749.0,67741.0,0.07403025]
[1771647968846,0.02360293,67749.0,67742.0,0.07395741]
[1771647971782,0.0973995,67754.0,67746.0,0.07380468]
[1771647975614,0.02360293,67754.0,67747.0,0.07380386]
[1771647975836,0.0739954,67755.0,67747.0,0.07380386]
[1771647975837,0.0002,67755.0,67749.0,0.07380175]
[1771647976639,0.0737932,67757.0,67749.0,0.07380175]
[1771647978564,0.07379235,67758.0,67750.0,0.07380073]
[1771647980026,0.07379122,67759.0,67751.0,0.07379926]
[1771647980234,0.07379122,67759.0,67750.0,0.07380073]
[1771647981448,0.07379271,67758.0,67750.0,0.07380073]
[1771647983242,0.0002,67759.0,67748.0,0.02468033]
[1771647983514,0.00027728,67760.0,67753.0,0.02468033]
[1771647983730,0.00027728,67760.0,67749.0,0.17872809]
[1771647983731,0.2214767,67766.0,67757.0,0.07379221]
[1771647983887,0.2214767,67766.0,67758.0,0.07379199]
[1771647984080,0.07378448,67765.0,67756.0,0.07379398]
[1771647984766,0.07378448,67765.0,67757.0,0.0737929]
[1771647988001,0.22147693,67766.0,67757.0,0.0737929]
[1771647988202,0.22147693,67766.0,67757.0,0.09847323]
[1771647988414,0.07378479,67765.0,67757.0,0.09847323]
[1771647990385,0.07398359,67766.0,67757.0,0.09847323]
[1771647990927,0.07378497,67765.0,67757.0,0.09847323]
[1771647993279,0.07398369,67766.0,67758.0,0.07379196]
[1771647995146,0.07398369,67766.0,67757.0,0.09847323]
[1771647995352,0.07378456,67765.0,67757.0,0.02468033]
[1771647996460,0.07378456,67765.0,67757.0,0.09847327]
[1771647996874,0.0002,67766.0,67758.0,0.0737912]
[1771647997082,0.0002,67766.0,67759.0,0.07379073]
[1771647997271,0.0002,67766.0,67758.0,0.07379165]
[1771647997774,0.0002,67765.0,67759.0,0.07379058]
[1771648004022,0.0002,67765.0,67758.0,0.07379167]
[1771648004200,0.0002,67765.0,67756.0,0.31792059]
[1771648004586,0.0002,67765.0,67759.0,0.07378896]
[1771648005648,0.07378229,67767.0,67759.0,0.07378896]
[1771648005820,0.07378229,67767.0,67759.0,0.09653472]
[1771648006020,0.07378184,67769.0,67760.0,0.07378955]
[1771648006626,0.07378181,67768.0,67759.0,0.09653472]
[1771648007071,0.07378223,67767.0,67759.0,0.09653472]
[1771648007746,0.07378147,67768.0,67760.0,0.07378942]
[1771648008124,0.07378451,67765.0,67757.0,0.07401278]
[1771648008971,0.07378255,67767.0,67759.0,0.07379038]
[1771648010748,0.00010379,67768.0,67760.0,0.07378984]
[1771648010976,0.07388548,67768.0,67760.0,0.07378963]
[1771648011173,0.07378231,67767.0,67757.0,0.00022]
[1771648011354,0.07378461,67765.0,67757.0,0.00022]
[1771648011973,0.09770996,67766.0,67757.0,0.00022]
[1771648012177,0.07378494,67765.0,67757.0,0.00022]
[1771648012376,0.07378494,67765.0,67757.0,0.07401307]
[1771648012547,0.07378494,67765.0,67757.0,0.00022]
[1771648012941,0.02392665,67765.0,67755.0,0.04904151]
[1771648013146,0.02392665,67759.0,67750.0,0.00038]
[1771648013768,0.02392665,67759.0,67752.0,0.07379749]
[1771648014794,0.02412185,67759.0,67752.0,0.07379749]
[1771648015004,0.02412185,67759.0,67753.0,0.07379711]
[1771648024064,0.0001952,67759.0,67754.0,0.07379635]
[1771648025213,0.09771535,67763.0,67754.0,0.07379597]
[1771648025214,0.02392665,67763.0,67754.0,0.07379597]
[1771648025626,0.0001216,67764.0,67753.0,0.02274576]
[1771648025819,0.07390738,67764.0,67754.0,0.07379425]
[1771648026680,0.07390738,67764.0,67755.0,0.07379455]
[1771648027932,0.0001216,67764.0,67754.0,0.16750391]
[1771648028137,0.0002,67765.0,67762.0,0.0737873]
[1771648028512,0.00010379,67768.0,67758.0,0.0246309]
[1771648028725,0.00010379,67768.0,67763.0,0.07378555]
[1771648029080,0.00010379,67768.0,67764.0,0.0737852]
[1771648030654,0.09691351,67774.0,67764.0,0.0737852]
[1771648030655,0.02313675,67774.0,67764.0,0.0737852]
[1771648030839,0.07377547,67774.0,67765.0,0.0737844]
[1771648031466,0.07377585,67773.0,67764.0,0.07378531]
[1771648032083,0.07377463,67774.0,67764.0,0.07378531]
[1771648032456,0.07377378,67775.0,67763.0,0.31977687]
[1771648032652,0.07377378,67775.0,67766.0,0.07378239]
[1771648033209,0.07377378,67775.0,67765.0,0.07378412]
[1771648033515,0.07377378,67775.0,67764.0,0.07378549]
[1771648033516,0.0737746,67774.0,67766.0,0.07378294]
[1771648033906,0.07377491,67774.0,67766.0,0.07378277]
[1771648034253,0.07377371,67775.0,67766.0,0.07378277]
[1771648034858,0.07377371,67775.0,67765.0,0.07378426]
[1771648035068,0.07397371,67775.0,67766.0,0.07378234]
[1771648035314,0.0002,67775.0,67767.0,0.07378126]
[1771648035537,0.07397376,67775.0,67767.0,0.07378126]
[1771648036070,0.07397376,67775.0,67765.0,0.07378346]
[1771648036071,0.07377581,67773.0,67765.0,0.07378346]
[1771648036275,0.07377581,67773.0,67764.0,0.07378529]
[1771648036988,0.07377692,67772.0,67764.0,0.07378529]
[1771648044983,0.07377598,67773.0,67765.0,0.07378438]
[1771648046189,0.07377598,67773.0,67764.0,0.07378529]
[1771648046371,0.07377598,67773.0,67765.0,0.07378434]
[1771648047156,0.07377554,67774.0,67766.0,0.07378262]
[1771648047864,0.07377554,67774.0,67766.0,0.09841352]
[1771648048682,0.07377554,67774.0,67766.0,0.07378262]
[1771648049299,0.0002,67775.0,67767.0,0.07378185]
[1771648049498,0.0002,67775.0,67768.0,0.07378088]
[1771648050139,0.0002,67775.0,67767.0,0.07378181]
[1771648050747,0.0002,67774.0,67768.0,0.07378109]
[1771648051587,0.0002,67774.0,67767.0,0.07378208]
[1771648051966,1.07377332,67777.0,67769.0,0.0246309]
[1771648052502,0.17907064,67777.0,67768.0,0.0246309]
[1771648052688,0.17907064,67777.0,67776.0,0.07377242]
[1771648052839,0.17907064,67777.0,67768.0,0.02473469]
[1771648052840,0.17907064,67777.0,67775.0,0.07377337]
[1771648053037,0.17907064,67777.0,67774.0,0.07377453]
[1771648053254,0.17907064,67777.0,67773.0,0.07377491]
[1771648054810,0.17907064,67777.0,67773.0,0.09840581]
[1771648060435,0.17927064,67777.0,67773.0,0.09840581]
[1771648061230,0.17927064,67777.0,67773.0,0.07377491]
[1771648061589,0.17927064,67777.0,67772.0,0.07377467]
[1771648061958,0.17927064,67777.0,67770.0,0.07377827]
[1771648062181,0.17927064,67777.0,67768.0,0.07388479]
[1771648062182,0.17301798,67776.0,67768.0,0.07388421]
[1771648062362,0.19676866,67776.0,67768.0,0.07388421]
[1771648062765,0.17301798,67776.0,67768.0,0.07388421]
[1771648066393,0.17301798,67776.0,67769.0,0.07377973]
[1771648067406,0.17301798,67776.0,67770.0,0.07377878]
[1771648070103,0.17301798,67776.0,67769.0,0.07399973]
[1771648070305,0.17297398,67772.0,67762.0,0.07378722]
[1771648070472,0.16053889,67770.0,67760.0,0.61062188]
[1771648070890,0.16053889,67770.0,67765.0,0.07378389]
[1771648071091,0.26692,67838.0,67767.0,0.07378143]
[1771648071092,0.09752402,67776.0,67767.0,0.07378143]
[1771648071309,0.16053889,67775.0,67767.0,0.07378145]
[1771648072344,0.23431243,67775.0,67767.0,0.07378145]
[1771648075312,0.16053889,67775.0,67768.0,0.07378088]
[1771648076544,0.25304398,67777.0,67770.0,0.07377825]
[1771648076545,0.17927064,67777.0,67770.0,0.07377825]
[1771648077317,0.17927064,67777.0,67770.0,0.07377856]
[1771648078168,0.15394264,67777.0,67773.0,0.02447779]
[1771648079435,0.14044593,67777.0,67776.0,0.07377242]
[1771648079635,0.14000164,67777.0,67776.0,0.07377242]
[1771648080479,0.14000164,67777.0,67776.0,0.09825021]
[1771648080676,0.00016,67780.0,67767.0,0.02447779]
[1771648080835,0.00016,67780.0,67766.0,0.07378331]
[1771648080836,0.0739402,67789.0,67781.0,0.09824465]
[1771648081246,0.0001816,67789.0,67781.0,0.09824465]
[1771648082060,0.07393996,67789.0,67781.0,0.09824465]
[1771648082458,0.07393996,67789.0,67781.0,0.02447779]
[1771648082880,0.07111811,67789.0,67781.0,0.02447779]
[1771648084513,0.17817624,67779.0,67770.0,0.07393807]
[1771648084731,0.17817624,67779.0,67770.0,0.07404184]
[1771648084886,0.17817624,67779.0,67771.0,0.07377786]
[1771648085596,0.17817624,67779.0,67772.0,0.07377659]
[1771648085808,0.17817624,67779.0,67771.0,0.07377697]
[1771648086203,0.17817624,67779.0,67772.0,0.0737765]
[1771648087495,0.17817624,67779.0,67771.0,0.07377579]
[1771648087897,0.07817624,67779.0,67771.0,0.07377579]
[1771648088515,0.07817624,67779.0,67773.0,0.07377555]
[1771648088921,0.07917624,67779.0,67773.0,0.07377555]
[1771648089301,0.07937624,67779.0,67773.0,0.07377555]
[1771648090523,0.07937624,67779.0,67770.0,0.00026377]
[1771648090725,0.17797883,67788.0,67771.0,0.0241325]
[1771648090948,0.17797883,67789.0,67782.0,0.07376516]
[1771648091151,0.17797883,67789.0,67781.0,0.07376697]
[1771648091573,0.25173729,67789.0,67780.0,0.07376805]
[1771648091775,0.0737594,67788.0,67779.0,0.07376885]